bitfinex/quotes_BTCUSD_20250908
["timestamp","ask_amount","ask_price","bid_price","bid_amount"]
[1757374335686,1.41024836,112120.0,112110.0,8.247e-05]
[1757374336499,1.7542498,112120.0,112110.0,8.247e-05]
[1757374339906,2.14804562,112120.0,112110.0,8.247e-05]
[1757374340136,2.17673899,112120.0,112110.0,8.247e-05]
[1757374341988,0.17842804,112090.0,112080.0,0.0102]
[1757374342241,0.17842804,112090.0,112080.0,0.01024626]
[1757374342242,0.80252147,112090.0,112080.0,0.01024626]
[1757374342787,0.8293,112090.0,112080.0,0.01024626]
[1757374343416,0.8293,112090.0,112080.0,0.01224626]
[1757374344229,0.8293,112090.0,112080.0,0.01324626]
[1757374346146,0.48550418,112090.0,112080.0,0.01324626]
[1757374346350,0.8293,112090.0,112080.0,0.01324626]
[1757374347234,0.86902898,112090.0,112080.0,0.01324626]
[1757374352529,0.86902898,112090.0,112080.0,0.01621626]
[1757374353741,1.20902898,112090.0,112080.0,0.01621626]
[1757374354602,0.86523316,112090.0,112080.0,0.01621626]
[1757374355020,1.20902898,112090.0,112080.0,0.01621626]
[1757374355641,1.20902898,112090.0,112080.0,0.01324626]
[1757374357722,1.20902898,112090.0,112080.0,0.01621626]
[1757374361180,0.69779036,112090.0,112080.0,0.01822626]
[1757374361408,0.19938278,112080.0,112070.0,0.0002]
[1757374361598,0.63509459,112080.0,112070.0,0.00024626]
[1757374361898,0.63715459,112080.0,112070.0,0.00024626]
[1757374362288,0.66393519,112080.0,112070.0,0.00024626]
[1757374363023,0.6726955,112080.0,112070.0,0.00024626]
[1757374363231,0.67201375,112080.0,112070.0,0.00024626]
[1757374363439,0.67132575,112080.0,112070.0,0.00124626]
[1757374363687,1.01512157,112080.0,112070.0,0.00124626]
[1757374368725,1.01512157,112080.0,112070.0,0.00439626]
[1757374369154,1.01512157,112080.0,112070.0,0.00640626]
[1757374371947,1.01512157,112080.0,112070.0,0.00439626]
[1757374372086,1.01512157,112080.0,112070.0,0.00124626]
[1757374372836,1.01512157,112080.0,112070.0,0.15104626]
[1757374375162,1.01512157,112080.0,112070.0,0.15620626]
[1757374375383,0.67132575,112080.0,112070.0,0.15620626]
[1757374375813,1.01132575,112080.0,112070.0,0.15620626]
[1757374377649,0.66752993,112080.0,112070.0,0.15104626]
[1757374377838,1.01132575,112080.0,112070.0,0.15419626]
[1757374378641,1.01132575,112080.0,112070.0,0.15407626]
[1757374380104,1.01132575,112080.0,112070.0,0.00124626]
[1757374380297,1.35650157,112080.0,112070.0,0.00124626]
[1757374380723,1.35650157,112080.0,112070.0,0.06972626]
[1757374380943,1.35650157,112080.0,112070.0,0.18232626]
[1757374381153,1.35512157,112080.0,112070.0,0.18232626]
[1757374381392,1.10324174,112080.0,112070.0,0.18232626]
[1757374381599,0.75944592,112080.0,112070.0,0.18232626]
[1757374381816,1.01132575,112080.0,112070.0,0.18232626]
[1757374382060,0.66852993,112080.0,112070.0,0.18132626]
[1757374382276,1.01232575,112080.0,112070.0,0.18132626]
[1757374382492,1.09392626,112080.0,112070.0,0.18132626]
[1757374383122,1.01332575,112080.0,112070.0,0.18132626]
[1757374383366,1.01332575,112080.0,112070.0,0.18447626]
[1757374383579,1.01332575,112080.0,112070.0,0.22291626]
[1757374384112,1.01332575,112080.0,112070.0,0.22492626]
[1757374384525,1.01332575,112080.0,112070.0,0.22291626]
[1757374384738,1.10524174,112080.0,112070.0,0.07187626]
[1757374385192,1.10524174,112080.0,112070.0,0.22035626]
[1757374385409,0.76144592,112080.0,112070.0,0.22035626]
[1757374385602,1.10524174,112080.0,112070.0,0.22236626]
[1757374386007,1.01332575,112080.0,112070.0,0.22236626]
[1757374387382,1.01332575,112080.0,112070.0,0.22035626]
[1757374392576,1.01126575,112080.0,112070.0,0.22240626]
[1757374392967,1.01324575,112080.0,112070.0,0.22240626]
[1757374394228,0.66944993,112080.0,112070.0,0.22240626]
[1757374394569,1.01324575,112080.0,112070.0,0.22240626]
[1757374395651,1.10516174,112080.0,112070.0,0.22240626]
[1757374396441,0.76136592,112080.0,112070.0,0.22240626]
[1757374397064,0.76136592,112080.0,112070.0,0.32240626]
[1757374399933,0.66944993,112080.0,112070.0,0.32240626]
[1757374400145,0.6377708,112080.0,112070.0,0.32240626]
[1757374403328,0.6377708,112080.0,112070.0,0.32444626]
[1757374416807,0.6109902,112080.0,112070.0,0.32444626]
[1757374428085,0.60989428,112080.0,112070.0,0.32444626]
[1757374431804,0.60989428,112080.0,112070.0,0.17392626]
[1757374431940,0.60989428,112080.0,112070.0,0.32384626]
[1757374433169,0.60989428,112080.0,112070.0,0.32329989]
[1757374449476,0.60989428,112080.0,112070.0,0.17337989]
[1757374449732,0.60989428,112080.0,112070.0,0.32313989]
[1757374452323,0.60989428,112080.0,112070.0,0.17337989]
[1757374452531,0.60989428,112080.0,112070.0,0.32313989]
[1757374458723,0.29667219,112080.0,112070.0,0.32313989]
[1757374459273,0.26989428,112080.0,112070.0,0.32313989]
[1757374459419,0.60989428,112080.0,112070.0,0.32313989]
[1757374472375,0.17797829,112080.0,112070.0,0.32313989]
[1757374476938,0.17697829,112080.0,112070.0,0.32313989]
[1757374477167,0.17697829,112080.0,112070.0,0.33188879]
[1757374477375,0.17597829,112080.0,112070.0,0.33188879]
[1757374480206,0.17597829,112080.0,112070.0,0.18212879]
[1757374480417,0.17597829,112080.0,112070.0,0.33184879]
[1757374483411,0.17597829,112080.0,112070.0,0.32309989]
[1757374486483,0.17597829,112080.0,112070.0,0.17337989]
[1757374486706,0.17597829,112080.0,112070.0,0.32533063]
[1757374486918,0.17597829,112080.0,112070.0,0.32309989]
[1757374506568,0.17597829,112080.0,112070.0,0.34987428]
[1757374507201,0.17597829,112080.0,112070.0,0.32309989]
[1757374514753,0.17597829,112080.0,112070.0,0.32301989]
[1757374517621,0.17597829,112080.0,112070.0,0.17337989]
[1757374517843,0.17597829,112080.0,112070.0,0.32525063]
[1757374518048,0.17597829,112080.0,112070.0,0.32301989]
[1757374527573,0.17597829,112080.0,112070.0,0.50147978]
[1757374529485,0.17597829,112080.0,112070.0,0.32301989]
[1757374531764,0.17597829,112080.0,112070.0,0.17337989]
[1757374531924,0.17597829,112080.0,112070.0,0.32521063]
[1757374532125,0.17597829,112080.0,112070.0,0.32297989]
[1757374533532,0.17597829,112080.0,112070.0,0.17337989]
[1757374533696,0.17597829,112080.0,112070.0,0.32521063]
[1757374533996,0.17597829,112080.0,112070.0,0.32297989]
[1757374539792,0.17597829,112080.0,112070.0,0.32293989]
[1757374540937,0.17597829,112080.0,112070.0,0.17337989]
[1757374541152,0.17597829,112080.0,112070.0,0.32293989]
[1757374549248,0.17597829,112080.0,112070.0,0.32225843]
[1757374553143,0.17597829,112080.0,112070.0,0.17269843]
[1757374553357,0.17597829,112080.0,112070.0,0.32444917]
[1757374553556,0.17597829,112080.0,112070.0,0.32221843]
[1757374572390,0.17597829,112080.0,112070.0,0.17269843]
[1757374572699,0.17597829,112080.0,112070.0,0.32217843]
[1757374591035,0.17597829,112080.0,112070.0,0.50063832]
[1757374596991,0.17597829,112080.0,112070.0,0.52741138]
[1757374609672,0.02677306,112090.0,112070.0,0.52741138]
[1757374609879,0.17842804,112090.0,112080.0,0.00223054]
[1757374610104,0.17842804,112090.0,112080.0,0.00726054]
[1757374610481,0.17842804,112090.0,112080.0,0.03403186]
[1757374611721,0.18042804,112090.0,112080.0,0.03403186]
[1757374618286,0.18042804,112090.0,112080.0,0.00726054]
[1757374620353,0.18042804,112090.0,112080.0,0.15662054]
[1757374620553,0.18042804,112090.0,112080.0,0.15439]
[1757374621770,0.18042804,112090.0,112080.0,0.00503]
[1757374622286,0.18042804,112090.0,112080.0,0.15435]
[1757374624048,0.17906299,112090.0,112080.0,0.15435]
[1757374628910,0.17906299,112090.0,112080.0,0.00503]
[1757374629120,0.17906299,112090.0,112080.0,0.15435]
[1757374631274,0.17906299,112090.0,112080.0,0.00503]
[1757374631500,0.17906299,112090.0,112080.0,0.15435]
[1757374634166,0.2058343,112090.0,112080.0,0.15435]
[1757374640582,0.17906299,112090.0,112080.0,0.15658054]
[1757374642899,0.17906299,112090.0,112080.0,0.15435]
[1757374644480,0.17906299,112090.0,112080.0,0.15658054]
[1757374644881,0.17906299,112090.0,112080.0,0.22506054]
[1757374645087,0.17906299,112090.0,112080.0,0.22283]
[1757374656473,0.17906299,112090.0,112080.0,0.24960131]
[1757374657149,0.17906299,112090.0,112080.0,0.22283]
[1757374659516,0.17806299,112090.0,112080.0,0.22283]
[1757374659957,0.17706299,112090.0,112080.0,0.22283]
[1757374674784,0.17842804,112090.0,112080.0,0.40127396]
[1757374675140,0.17842804,112090.0,112080.0,0.42804527]
[1757374681000,0.17842804,112090.0,112080.0,0.40127396]
[1757374685136,0.17842804,112090.0,112080.0,0.42804527]
[1757374695070,0.21410404,112100.0,112080.0,0.42804527]
[1757374695257,0.17842804,112090.0,112080.0,0.42508527]
[1757374695902,0.17842804,112090.0,112080.0,0.42832527]
[1757374696781,0.17842804,112090.0,112080.0,0.40155396]
[1757374701480,0.17842804,112090.0,112080.0,0.42832527]
[1757374705178,0.62672961,112110.0,112090.0,0.17842804]
[1757374705389,0.62672961,112110.0,112100.0,0.15665015]
[1757374705607,0.18732961,112110.0,112100.0,0.15665015]
[1757374706392,0.18932961,112110.0,112100.0,0.15665015]
[1757374706627,0.18832961,112110.0,112100.0,0.15665015]
[1757374706836,0.18932961,112110.0,112100.0,0.15665015]
[1757374707250,0.19132961,112110.0,112100.0,0.15665015]
[1757374710169,0.19132961,112110.0,112100.0,0.22513015]
[1757374710354,0.19132961,112110.0,112100.0,0.2229]
[1757374729198,0.19132961,112110.0,112100.0,0.22242204]
[1757374733538,0.19132961,112110.0,112100.0,0.22278]
[1757374735490,0.19132961,112110.0,112100.0,0.07378]
[1757374735646,0.19132961,112110.0,112100.0,0.22278]
[1757374739980,0.19132961,112110.0,112100.0,0.07378]
[1757374740189,0.19132961,112110.0,112100.0,0.22278]
[1757374754138,0.53698215,112110.0,112100.0,0.06848]
[1757374754355,0.53698215,112110.0,112100.0,0.21804]
[1757374754774,0.53843215,112110.0,112100.0,0.21804]
[1757374755426,0.53843215,112110.0,112100.0,0.06848]
[1757374755621,0.63034814,112110.0,112100.0,0.21808]
[1757374756171,0.62889814,112110.0,112100.0,0.21808]
[1757374763595,0.62889814,112110.0,112100.0,0.06848]
[1757374763750,0.62889814,112110.0,112100.0,0.21788]
[1757374764350,0.62892406,112110.0,112100.0,0.21788]
[1757374765456,0.62892406,112110.0,112100.0,0.06848]
[1757374765685,0.62892406,112110.0,112100.0,0.21784]
[1757374766110,0.62892406,112110.0,112100.0,0.06848]
[1757374766290,0.62892406,112110.0,112100.0,0.21784]
[1757374771799,0.2852256,112110.0,112100.0,0.21784]
[1757374771935,0.62892406,112110.0,112100.0,0.21784]
[1757374773243,0.2852256,112110.0,112100.0,0.21784]
[1757374773383,0.62892406,112110.0,112100.0,0.21784]
[1757374775576,0.62892406,112110.0,112100.0,0.21772]
[1757374776211,0.2852256,112110.0,112100.0,0.21772]
[1757374776417,0.62892406,112110.0,112100.0,0.21772]
[1757374777908,0.65569404,112110.0,112100.0,0.21772]
[1757374782758,0.31199558,112110.0,112100.0,0.21772]
[1757374782952,0.65569404,112110.0,112100.0,0.21772]
[1757374783486,0.31199558,112110.0,112100.0,0.21772]
[1757374785354,0.65569404,112110.0,112100.0,0.21772]
[1757374788556,0.31199558,112110.0,112100.0,0.21772]
[1757374788782,0.31199558,112110.0,112100.0,0.22302]
[1757374789220,0.31199558,112110.0,112100.0,0.2209]
[1757374792110,0.31199558,112110.0,112100.0,0.21772]
[1757374794162,0.31199558,112110.0,112100.0,0.2209]
[1757374794355,0.31199558,112110.0,112100.0,0.21772]
[1757374794835,0.31199558,112110.0,112100.0,0.2209]
[1757374795021,0.31199558,112110.0,112100.0,0.22302]
[1757374795328,0.31199558,112110.0,112100.0,0.21772]
[1757374795977,0.31199558,112110.0,112100.0,0.2209]
[1757374798845,0.31199558,112110.0,112100.0,0.22302]
[1757374801092,0.31199558,112110.0,112100.0,0.2209]
[1757374801300,0.31199558,112110.0,112100.0,0.22302]
[1757374803888,0.31001558,112110.0,112100.0,0.22302]
[1757374813977,0.31199558,112110.0,112100.0,0.22302]
[1757374815679,0.31001558,112110.0,112100.0,0.22302]
[1757374831278,0.65564083,112110.0,112100.0,0.21772]
[1757374832575,0.65564083,112110.0,112100.0,0.22083]
[1757374832921,0.31199558,112110.0,112100.0,0.22083]
[1757374833121,0.65564083,112110.0,112100.0,0.22083]
[1757374834417,0.65564083,112110.0,112100.0,0.21772]
[1757374835298,0.65564083,112110.0,112100.0,0.22291]
[1757374839682,0.65564083,112110.0,112100.0,0.22083]
[1757374840585,0.65564083,112110.0,112100.0,0.22293]
[1757374845879,0.65564083,112110.0,112100.0,0.22083]
[1757374846262,0.65564083,112110.0,112100.0,0.21772]
[1757374847641,0.31199558,112110.0,112100.0,0.21772]
[1757374847827,0.65564083,112110.0,112100.0,0.21772]
[1757374848259,0.31199558,112110.0,112100.0,0.22088]
[1757374848450,0.65564083,112110.0,112100.0,0.22088]
[1757374849067,0.31199558,112110.0,112100.0,0.22088]
[1757374849191,0.65564083,112110.0,112100.0,0.22088]
[1757374849617,0.65564083,112110.0,112100.0,0.22298]
[1757374850085,0.65564083,112110.0,112100.0,0.22088]
[1757374850609,0.31199558,112110.0,112100.0,0.22088]
[1757374850743,0.65564083,112110.0,112100.0,0.22298]
[1757374852349,0.65564083,112110.0,112100.0,0.22088]
[1757374854153,0.65564083,112110.0,112100.0,0.22298]
[1757374862056,0.65564083,112110.0,112100.0,0.21772]
[1757374862859,0.65564083,112110.0,112100.0,0.22088]
[1757374866909,0.65564083,112110.0,112100.0,0.22298]
[1757374867311,0.65301831,112110.0,112100.0,0.22298]
[1757374870332,0.65301831,112110.0,112100.0,0.22088]
[1757374871170,0.65301831,112110.0,112100.0,0.22284]
[1757374874896,0.65301831,112110.0,112100.0,0.21772]
[1757374875099,0.99446831,112110.0,112100.0,0.06848]
[1757374875310,0.17842804,112090.0,112080.0,0.06848]
[1757374875519,0.61630234,112090.0,112080.0,0.21744]
[1757374875760,0.61741928,112090.0,112080.0,0.21744]
[1757374876183,0.6441954,112090.0,112080.0,0.21744]
[1757374876420,0.6427454,112090.0,112080.0,0.21744]
[1757374876601,0.6441954,112090.0,112080.0,0.21744]
[1757374877842,0.65318348,112090.0,112080.0,0.21744]
[1757374878615,0.30953823,112090.0,112080.0,0.21744]
[1757374878799,0.65318348,112090.0,112080.0,0.21744]
[1757374879634,0.30953823,112090.0,112080.0,0.21744]
[1757374879842,0.65318348,112090.0,112080.0,0.21744]
[1757374881683,0.51844396,112080.0,112070.0,0.1]
[1757374881908,1.29910045,112080.0,112070.0,0.249]
[1757374882111,1.30108045,112080.0,112070.0,0.249]
[1757374882310,1.32394045,112080.0,112070.0,0.249]
[1757374882535,1.3507209,112080.0,112070.0,0.249]
[1757374882731,1.40429106,112080.0,112070.0,0.249]
[1757374883527,1.3507209,112080.0,112070.0,0.25]
[1757374883727,1.4997209,112080.0,112070.0,0.25]
[1757374883988,1.4997209,112080.0,112070.0,0.249]
[1757374884379,1.5007209,112080.0,112070.0,0.249]
[1757374884892,1.5017209,112080.0,112070.0,0.249]
[1757374885129,1.59363689,112080.0,112070.0,0.249]
[1757374885897,1.5017209,112080.0,112070.0,0.249]
[1757374886097,1.52265972,112080.0,112070.0,0.1]
[1757374886301,1.52265972,112080.0,112070.0,1e-08]
[1757374886508,1.52341174,112080.0,112070.0,1e-08]
[1757374887994,1.54921468,112080.0,112070.0,1e-08]
[1757374888194,1.64113067,112080.0,112070.0,1e-08]
[1757374894182,1.65771406,112080.0,112070.0,1e-08]
[1757374896946,1.50871406,112080.0,112070.0,1e-08]
[1757374897150,1.65771406,112080.0,112070.0,1e-08]
[1757374901645,1.50871406,112080.0,112070.0,1e-08]
[1757374901845,1.65775406,112080.0,112070.0,1e-08]
[1757374904275,1.67690611,112080.0,112070.0,1e-08]
[1757374904479,1.52786611,112080.0,112070.0,1e-08]
[1757374904896,1.67690611,112080.0,112070.0,1e-08]
[1757374911183,1.68523921,112080.0,112070.0,1e-08]
[1757374911395,1.709351,112080.0,112070.0,1e-08]
[1757374915793,1.560231,112080.0,112070.0,1e-08]
[1757374915934,1.709471,112080.0,112070.0,1e-08]
[1757374916762,1.02142848,112080.0,112070.0,1e-08]
[1757374916999,1.709471,112080.0,112070.0,1e-08]
[1757374924138,1.709471,112080.0,112070.0,1e-08]
[1757374924344,1.68543921,112080.0,112070.0,1e-08]
[1757374926869,0.99739669,112080.0,112070.0,1e-08]
[1757374927085,1.68543921,112080.0,112070.0,1e-08]
[1757374930209,1.67710611,112080.0,112070.0,1e-08]
[1757374931214,0.98906359,112080.0,112070.0,1e-08]
[1757374931606,1.67710611,112080.0,112070.0,1e-08]
[1757374935641,1.5279676,112080.0,112070.0,1e-08]
[1757374935900,1.6772876,112080.0,112070.0,1e-08]
[1757374946313,1.5279676,112080.0,112070.0,1e-08]
[1757374946516,2.02123989,112080.0,112070.0,1e-08]
[1757374947673,1.87203989,112080.0,112070.0,1e-08]
[1757374947878,2.02127989,112080.0,112070.0,1e-08]
[1757374954589,1.87203989,112080.0,112070.0,1e-08]
[1757374954889,2.02119989,112080.0,112070.0,1e-08]
[1757374955086,1.67716162,112080.0,112070.0,1e-08]
[1757374959648,1.67715548,112080.0,112070.0,1e-08]
[1757374960473,0.98907894,112080.0,112070.0,1e-08]
[1757374960669,1.67715548,112080.0,112070.0,1e-08]
[1757374962364,0.98899894,112080.0,112070.0,1e-08]
[1757374962607,1.65127254,112080.0,112070.0,1e-08]
[1757374962959,0.789806,112080.0,112070.0,1e-08]
[1757374963158,1.28296427,112080.0,112070.0,1e-08]
[1757374963373,1.26381222,112080.0,112070.0,1e-08]
[1757374963760,0.91977395,112080.0,112070.0,1e-08]
[1757374963963,1.26381222,112080.0,112070.0,1e-08]
[1757374965767,1.26526222,112080.0,112070.0,1e-08]
[1757374966171,1.60930049,112080.0,112070.0,1e-08]
[1757374967017,1.62851177,112080.0,112070.0,1e-08]
[1757374967534,0.94043523,112080.0,112070.0,1e-08]
[1757374967719,1.62851177,112080.0,112070.0,1e-08]
[1757374968717,0.94043523,112080.0,112070.0,1e-08]
[1757374968953,1.62851177,112080.0,112070.0,1e-08]
[1757374970668,1.65431471,112080.0,112070.0,1e-08]
[1757374972092,1.65431226,112080.0,112070.0,1e-08]
[1757374972788,0.96623572,112080.0,112070.0,1e-08]
[1757374973011,1.65431226,112080.0,112070.0,1e-08]
[1757374974434,0.96623572,112080.0,112070.0,1e-08]
[1757374974742,1.65431226,112080.0,112070.0,1e-08]
[1757374977656,0.96623572,112080.0,112070.0,1e-08]
[1757374977855,1.65431226,112080.0,112070.0,1e-08]
[1757374978558,0.96623572,112080.0,112070.0,1e-08]
[1757374978760,1.65431226,112080.0,112070.0,1e-08]
[1757374980752,0.96623572,112080.0,112070.0,1e-08]
[1757374980901,1.62850932,112080.0,112070.0,1e-08]
[1757374982484,1.65431226,112080.0,112070.0,1e-08]
[1757374986012,0.96623572,112080.0,112070.0,1e-08]
[1757374986235,1.65431226,112080.0,112070.0,1e-08]
[1757374988146,0.17845989,112070.0,112060.0,1e-08]
[1757374988348,0.55624416,112070.0,112060.0,4.628e-05]
[1757374988518,0.90139937,112070.0,112060.0,4.628e-05]
[1757374988954,0.92818507,112070.0,112060.0,4.628e-05]
[1757374989745,0.5841468,112070.0,112060.0,4.628e-05]
[1757374989967,0.96850708,112070.0,112060.0,4.628e-05]
[1757374991580,0.62446881,112070.0,112060.0,4.628e-05]
[1757374991737,0.96850708,112070.0,112060.0,4.628e-05]
[1757374992559,0.62446881,112070.0,112060.0,4.628e-05]
[1757374992760,0.96850708,112070.0,112060.0,4.628e-05]
[1757374993610,0.62446881,112070.0,112060.0,4.628e-05]
[1757374993739,0.96850708,112070.0,112060.0,4.628e-05]
[1757374994470,1.31254535,112070.0,112060.0,4.628e-05]
[1757374994673,0.96850708,112070.0,112060.0,4.628e-05]
[1757374995263,1.40790708,112070.0,112060.0,4.628e-05]
[1757374996853,1.06386881,112070.0,112060.0,4.628e-05]
[1757374997032,1.40790708,112070.0,112060.0,4.628e-05]
[1757375000820,1.75194535,112070.0,112060.0,4.628e-05]
[1757375004108,2.16510857,112070.0,112060.0,4.628e-05]
[1757375005328,2.16610857,112070.0,112060.0,4.628e-05]
[1757375005526,2.16810857,112070.0,112060.0,4.628e-05]
[1757375006196,2.13788187,112070.0,112060.0,4.628e-05]
[1757375006391,2.13786863,112070.0,112060.0,4.628e-05]
[1757375007028,2.13686863,112070.0,112060.0,4.628e-05]
[1757375007224,2.13886863,112070.0,112060.0,4.628e-05]
[1757375007831,0.17850767,112040.0,112030.0,0.08061212]
[1757375008031,0.69054881,112040.0,112030.0,0.08061212]
[1757375008298,0.68823575,112040.0,112030.0,0.08364212]
[1757375008416,0.34419748,112040.0,112030.0,0.01505]
[1757375008776,0.29919173,112040.0,112030.0,0.01505]
[1757375008999,0.29919173,112040.0,112030.0,0.01705]
[1757375009573,0.30818297,112040.0,112030.0,0.01705]
[1757375010350,0.30818297,112040.0,112030.0,0.01805]
[1757375015686,0.30620297,112040.0,112030.0,0.01805]
[1757375015931,0.39811896,112040.0,112030.0,0.01805]
[1757375052690,0.40009896,112040.0,112030.0,0.01805]
[1757375053892,0.40009896,112040.0,112030.0,0.01305]
[1757375055701,0.30818297,112040.0,112030.0,0.01305]
[1757375056849,0.30818297,112040.0,112030.0,0.008]
[1757375057414,0.30818297,112040.0,112030.0,0.0111]
[1757375058691,0.30818297,112040.0,112030.0,0.008]
[1757375059062,0.65233464,112040.0,112030.0,0.008]
[1757375059261,0.74425063,112040.0,112030.0,0.008]
[1757375059480,0.74570063,112040.0,112030.0,0.008]
[1757375059667,0.76237189,112040.0,112030.0,0.008]
[1757375060143,0.80266456,112040.0,112030.0,0.008]
[1757375060343,0.7859933,112040.0,112030.0,0.008]
[1757375060925,0.7859933,112040.0,112030.0,0.006]
[1757375061191,0.81279624,112040.0,112030.0,0.006]
[1757375061397,0.82946406,112040.0,112030.0,0.005]
[1757375061790,0.85040288,112040.0,112030.0,0.005]
[1757375062497,0.85140288,112040.0,112030.0,0.005]
[1757375065068,0.8513985,112040.0,112030.0,0.005]
[1757375066351,0.82559556,112040.0,112030.0,0.005]
[1757375066562,0.82414556,112040.0,112030.0,0.005]
[1757375066970,0.97322556,112040.0,112030.0,0.005]
[1757375068341,0.62907389,112040.0,112030.0,0.005]
[1757375068548,0.97322556,112040.0,112030.0,0.005]
[1757375070410,0.97324294,112040.0,112030.0,0.005]
[1757375071226,0.9565795,112040.0,112030.0,0.005]
[1757375074667,0.61241045,112040.0,112030.0,0.005]
[1757375074914,0.9565795,112040.0,112030.0,0.005]
[1757375077241,0.97340907,112040.0,112030.0,0.005]
[1757375078321,0.62924002,112040.0,112030.0,0.005]
[1757375078521,0.97340907,112040.0,112030.0,0.005]
[1757375080494,1.34334751,112040.0,112030.0,0.005]
[1757375080688,1.34327751,112040.0,112030.0,0.005]
[1757375081101,0.99910846,112040.0,112030.0,0.005]
[1757375081906,0.65493941,112040.0,112030.0,0.005]
[1757375082072,0.99910846,112040.0,112030.0,0.005]
[1757375082523,0.65493941,112040.0,112030.0,0.005]
[1757375082717,0.99910846,112040.0,112030.0,0.005]
[1757375082917,0.65493941,112040.0,112030.0,0.005]
[1757375083159,0.99910846,112040.0,112030.0,0.005]
[1757375083828,0.65493941,112040.0,112030.0,0.005]
[1757375084026,0.99910846,112040.0,112030.0,0.005]
[1757375084834,0.65493941,112040.0,112030.0,0.005]
[1757375084973,0.65493941,112040.0,112030.0,0.01018]
[1757375085193,0.34849564,112040.0,112030.0,0.01018]
[1757375085954,0.35056564,112040.0,112030.0,0.01018]
[1757375086136,0.69473469,112040.0,112030.0,0.01018]
[1757375092733,0.35056564,112040.0,112030.0,0.01018]
[1757375092972,0.78665068,112040.0,112030.0,0.01018]
[1757375093713,0.44248163,112040.0,112030.0,0.01018]
[1757375093925,0.78665068,112040.0,112030.0,0.01018]
[1757375096786,0.44248163,112040.0,112030.0,0.01018]
[1757375096988,0.78665068,112040.0,112030.0,0.00805]
[1757375097757,0.44248163,112040.0,112030.0,0.00805]
[1757375097931,0.78665068,112040.0,112030.0,0.00805]
[1757375098241,0.78665068,112040.0,112030.0,0.01018]
[1757375098936,0.44248163,112040.0,112030.0,0.01018]
[1757375099468,0.78665068,112040.0,112030.0,0.01018]
[1757375100873,0.78665068,112040.0,112030.0,0.005]
[1757375101115,0.93705068,112040.0,112030.0,0.005]
[1757375101512,0.93569068,112040.0,112030.0,0.005]
[1757375104762,0.59152163,112040.0,112030.0,0.005]
[1757375104975,0.93569068,112040.0,112030.0,0.005]
[1757375105754,0.59152163,112040.0,112030.0,0.005]
[1757375105957,0.93569068,112040.0,112030.0,0.005]
[1757375106800,0.59152163,112040.0,112030.0,0.005]
[1757375106980,0.93569068,112040.0,112030.0,0.005]
[1757375109208,1.27985973,112040.0,112030.0,0.005]
[1757375109418,1.29788098,112040.0,112030.0,0.005]
[1757375111062,0.60954288,112040.0,112030.0,0.005]
[1757375111397,1.29788098,112040.0,112030.0,0.005]
[1757375116277,1.29652098,112040.0,112030.0,0.005]
[1757375118414,1.27985973,112040.0,112030.0,0.005]
[1757375118616,0.93569068,112040.0,112030.0,0.005]
[1757375119731,0.59152163,112040.0,112030.0,0.005]
[1757375119971,0.93569068,112040.0,112030.0,0.005]
[1757375122733,0.6081821,112040.0,112030.0,0.005]
[1757375122881,0.95235115,112040.0,112030.0,0.005]
[1757375123523,1.2965202,112040.0,112030.0,0.005]
[1757375123723,0.6081821,112040.0,112030.0,0.005]
[1757375123947,1.2965202,112040.0,112030.0,0.005]
[1757375126054,0.6081821,112040.0,112030.0,0.005]
[1757375126255,1.2965202,112040.0,112030.0,0.005]
[1757375128868,0.6081821,112040.0,112030.0,0.005]
[1757375129069,1.2965202,112040.0,112030.0,0.005]
[1757375130328,1.2964802,112040.0,112030.0,0.005]
[1757375130541,0.95232902,112040.0,112030.0,0.005]
[1757375130718,0.6081421,112040.0,112030.0,0.005]
[1757375130925,0.95232902,112040.0,112030.0,0.005]
[1757375131916,0.6081421,112040.0,112030.0,0.005]
[1757375132122,0.95232902,112040.0,112030.0,0.005]
[1757375145670,0.95232902,112040.0,112030.0,0.00801]
[1757375145885,0.95232902,112040.0,112030.0,0.005]
[1757375146242,0.6081421,112040.0,112030.0,0.005]
[1757375146449,0.95232902,112040.0,112030.0,0.005]
[1757375149006,0.6081421,112040.0,112030.0,0.005]
[1757375149204,0.95232902,112040.0,112030.0,0.005]
[1757375149604,0.95368902,112040.0,112030.0,0.005]
[1757375149808,0.95232902,112040.0,112030.0,0.005]
[1757375155750,0.93566855,112040.0,112030.0,0.005]
[1757375155973,0.95233909,112040.0,112030.0,0.005]
[1757375157185,0.94815217,112040.0,112030.0,0.005]
[1757375157386,1.29233909,112040.0,112030.0,0.005]
[1757375157787,0.94815217,112040.0,112030.0,0.005]
[1757375158007,1.29233909,112040.0,112030.0,0.005]
[1757375158843,0.94815217,112040.0,112030.0,0.005]
[1757375159032,1.29233909,112040.0,112030.0,0.005]
[1757375164085,1.31327791,112040.0,112030.0,0.005]
[1757375164442,0.97045099,112040.0,112030.0,0.005]
[1757375164584,1.31463791,112040.0,112030.0,0.005]
[1757375169302,1.33875313,112040.0,112030.0,0.005]
[1757375178324,1.32208259,112040.0,112030.0,0.005]
[1757375178535,0.99455442,112040.0,112030.0,0.005]
[1757375178758,1.33874134,112040.0,112030.0,0.005]
[1757375178972,1.33874134,112040.0,112030.0,1e-08]
[1757375179180,1.3579327,112040.0,112030.0,1e-08]
[1757375179606,1.33874134,112040.0,112030.0,1e-08]
[1757375180533,0.99455442,112040.0,112030.0,1e-08]
[1757375180835,1.33874134,112040.0,112030.0,1e-08]
[1757375181956,0.99455442,112040.0,112030.0,1e-08]
[1757375182257,1.33874134,112040.0,112030.0,1e-08]
[1757375182698,1.33874003,112040.0,112030.0,1e-08]
[1757375186031,1.18974003,112040.0,112030.0,1e-08]
[1757375186277,1.33866003,112040.0,112030.0,1e-08]
[1757375187773,0.99447311,112040.0,112030.0,1e-08]
[1757375187978,1.33866003,112040.0,112030.0,1e-08]
[1757375188935,0.99447311,112040.0,112030.0,1e-08]
[1757375189140,1.18974003,112040.0,112030.0,1e-08]
[1757375189313,1.33866003,112040.0,112030.0,1e-08]
[1757375189964,0.84555311,112040.0,112030.0,1e-08]
[1757375190144,1.33866003,112040.0,112030.0,1e-08]
[1757375190367,1.68297067,112040.0,112030.0,1e-08]
[1757375190605,0.7281619,112040.0,112030.0,1e-08]
[1757375190730,1.56558157,112040.0,112030.0,0.00294001]
[1757375191135,0.87708401,112040.0,112030.0,0.00294001]
[1757375191366,1.56558157,112040.0,112030.0,1e-08]
[1757375196848,0.87708401,112040.0,112030.0,1e-08]